bitfinex-derivatives/quotes_SOLF0:USTF0_20250310
["timestamp","ask_amount","ask_price","bid_price","bid_amount"]
[1741626343930,0.05795075,118.95,118.94,8.4115]
[1741626344227,58.55017533,118.96,118.88,1.68236877]
[1741626344721,58.55017533,119.0,118.93,0.06117017]
[1741626345224,58.55017533,118.94,118.89,62.0]
[1741626345424,58.55017533,118.92,118.89,62.0]
[1741626345625,58.55017533,118.9,118.84,92.06902118]
[1741626345826,58.55017533,118.86,118.84,92.06902118]
[1741626346226,117.10035066,118.86,118.84,0.06157528]
[1741626346420,117.15610434,118.86,118.83,138.10353177]
[1741626346632,58.60592901,118.86,118.83,138.10353177]
[1741626346820,0.05575368,118.86,118.83,138.10353177]
[1741626347226,0.05575368,118.86,118.85,8.418]
[1741626347621,0.05575368,118.86,118.84,0.05505547]
[1741626348726,0.05575368,118.86,118.84,70.47345547]
[1741626349031,0.05575368,118.86,118.84,0.05505547]
[1741626349730,5.368e-05,118.86,118.84,0.05505547]
[1741626349926,5.368e-05,118.86,118.85,8.418]
[1741626351422,5.368e-05,118.86,118.85,10.938]
[1741626351823,5.368e-05,118.86,118.85,8.418]
[1741626352020,5.368e-05,118.86,118.85,71.94830993]
[1741626352424,5.368e-05,118.86,118.85,70.418]
[1741626353225,5.368e-05,118.86,118.85,8.418]
[1741626353733,5.368e-05,118.86,118.85,10.938]
[1741626353925,5.368e-05,118.86,118.85,71.01853504]
[1741626354430,58.55017533,118.98,118.85,62.60053504]
[1741626354625,58.55017533,118.98,118.86,1.53035971]
[1741626354822,58.55017533,118.93,118.86,1.53035971]
[1741626355024,58.55017533,118.9,118.86,8.4171]
[1741626355630,0.06104369,118.89,118.87,0.05868741]
[1741626356423,4.369e-05,118.89,118.87,0.05868741]
[1741626356930,4.369e-05,118.89,118.88,8.4158]
[1741626357328,4.369e-05,118.89,118.88,10.9358]
[1741626357524,4.369e-05,118.89,118.88,8.4158]
[1741626359737,4.369e-05,118.89,118.87,8.47488741]
[1741626359936,4.369e-05,118.89,118.87,0.05868741]
[1741626360435,4.369e-05,118.89,118.88,8.4158]
[1741626361134,4.369e-05,118.89,118.88,10.9358]
[1741626362132,4.369e-05,118.89,118.88,8.4158]
[1741626362333,4.369e-05,118.89,118.88,9.94550946]
[1741626362530,4.369e-05,118.89,118.88,8.4158]
[1741626363836,4.369e-05,118.89,118.87,0.05868741]
[1741626364032,58.55017533,118.88,118.8,0.71153]
[1741626364238,58.55017533,118.86,118.8,0.71153]
[1741626364537,58.55017533,118.82,118.8,0.71153]
[1741626364735,58.55017533,118.81,118.77,167.36369438]
[1741626364938,58.55017533,118.78,118.76,7.33507538]
[1741626365138,58.55017533,118.78,118.75,287.7156912]
[1741626365435,117.10035066,118.76,118.74,29.96434655]
[1741626365635,117.10035066,118.76,118.74,275.95959119]
[1741626365636,277.56,118.75,118.74,275.95959119]
[1741626365835,336.11017533,118.75,118.74,236.53248961]
[1741626366034,58.55017533,118.75,118.74,236.53248961]
[1741626366238,58.55017533,118.77,118.74,236.53248961]
[1741626366437,0.06066525,118.78,118.74,236.53248961]
[1741626367138,336.17084058,118.78,118.74,236.53248961]
[1741626367333,58.55017533,118.76,118.74,5.53248961]
[1741626367530,58.55017533,118.76,118.72,98.65663358]
[1741626367734,58.55017533,118.73,118.72,98.65663358]
[1741626367940,58.55017533,118.73,118.63,2.9375]
[1741626368232,58.55017533,118.74,118.63,2.9375]
[1741626368432,58.55017533,118.71,118.66,8.4311]
[1741626368636,133.72500911,118.75,118.67,58.55017533]
[1741626368842,192.27518444,118.75,118.63,2.9375]
[1741626369137,0.0609052,118.72,118.7,0.06075932]
[1741626369340,58.55017533,118.71,118.7,0.06075932]
[1741626369538,761.06136364,118.68,118.59,3.0583]
[1741626369737,761.06136364,118.68,118.62,58.55017533]
[1741626369941,761.06136364,118.68,118.59,3.0583]
[1741626370639,0.059301,118.65,118.64,8.4329]
[1741626370837,761.06136364,118.68,118.64,58.55017533]
[1741626371042,133.72500911,118.67,118.64,58.55017533]
[1741626371337,133.72500911,118.67,118.65,62.0]
[1741626371740,11.80550911,118.67,118.66,66.98157533]
[1741626371942,2.9493,118.82,118.66,118.63314049]
[1741626372138,2.9493,118.82,118.71,58.55017533]
[1741626372341,2.9493,118.82,118.73,58.55017533]
[1741626372536,40.20671375,118.81,118.75,58.55017533]
[1741626372743,40.20671375,118.81,118.8,8.4215]
[1741626372938,26.81571375,118.81,118.8,8.4215]
[1741626373143,26.81571375,118.81,118.79,0.05593564]
[1741626373939,58.55017533,118.8,118.71,8.4277]
[1741626374140,58.55017533,118.76,118.62,277.86]
[1741626374348,58.55017533,118.74,118.63,60.08298947]
[1741626374646,277.86,118.79,118.63,60.08298947]
[1741626374647,58.55017533,118.76,118.64,1.53281414]
[1741626374844,58.55017533,118.76,118.65,62.0]
[1741626375149,0.06373882,118.71,118.69,0.05446451]
[1741626375549,26.81571375,118.73,118.69,0.05446451]
[1741626375752,0.05745389,118.71,118.69,0.05446451]
[1741626376644,0.05745389,118.71,118.7,8.4286]
[1741626376847,26.81571375,118.7,118.66,58.55017533]
[1741626377243,0.02471375,118.7,118.69,8.4293]
[1741626377447,51.27492445,118.8,118.68,117.10035066]
[1741626377649,51.27492445,118.8,118.71,58.55017533]
[1741626377846,51.27492445,118.8,118.73,58.55017533]
[1741626378243,51.27492445,118.8,118.74,1.53163619]
[1741626378451,51.27492445,118.8,118.73,58.55017533]
[1741626378651,0.05377814,118.78,118.76,0.05568662]
[1741626379148,61.12395347,118.78,118.6,277.86]
[1741626379456,58.55017533,118.73,118.64,3.21831165]
[1741626379649,58.55017533,118.73,118.64,1.68577208]
[1741626379953,58.55017533,118.76,118.65,1.53279745]
[1741626380144,39.67584266,118.77,118.64,1.68577208]
[1741626380145,58.55017533,118.74,118.64,1.68577208]
[1741626380342,58.55017533,118.74,118.67,0.05643561]
[1741626380343,0.0601514,118.7,118.67,0.05643561]
[1741626380546,0.0601514,118.7,118.68,62.0]
[1741626380948,0.0601514,118.7,118.67,0.05643561]
[1741626381448,1535.67614073,118.68,118.61,60.01639539]
[1741626381653,1509.53054073,118.68,118.65,58.55017533]
[1741626382046,1509.53054073,118.68,118.61,58.55017533]
[1741626382245,1509.53054073,118.68,118.55,277.92]
[1741626382447,1568.08071606,118.68,118.62,1.53322758]
[1741626382751,1568.08071606,118.68,118.57,58.55017533]
[1741626382953,0.06400906,118.66,118.64,0.05471754]
[1741626383149,0.06400906,118.66,118.58,3.22021642]
[1741626383150,0.06400906,118.66,118.58,1.68662506]
[1741626383355,0.06400906,118.66,118.64,0.05389826]
[1741626383559,58.55017533,118.64,118.58,1.68662506]
[1741626384053,58.55017533,118.6,118.47,58.55017533]
[1741626384259,58.55017533,118.55,118.48,1.53462089]
[1741626384553,58.55017533,118.55,118.44,62.0]
[1741626384554,58.55017533,118.53,118.41,61.60857533]
[1741626384756,58.55017533,118.51,118.42,1.53555501]
[1741626384950,58.55017533,118.51,118.41,1.46832345]
[1741626385253,58.55017533,118.47,118.4,1.46894325]
[1741626385456,58.55017533,118.45,118.26,249.55017533]
[1741626385653,58.55017533,118.49,118.3,58.55017533]
[1741626385654,58.55017533,118.43,118.3,58.55017533]
[1741626385857,58.55017533,118.43,118.31,1.53656895]
[1741626386058,0.06006074,118.37,118.34,0.05489934]
[1741626386258,58.55017533,118.38,118.2,191.0]
[1741626386553,58.55017533,118.38,118.15,25.24]
[1741626386554,58.55017533,118.35,118.14,6.0634]
[1741626386763,2.87,118.37,118.18,58.55017533]
[1741626386764,58.55017533,118.31,118.18,58.55017533]
[1741626386955,278.14,118.34,118.09,5.9931]
[1741626386956,58.55017533,118.32,118.09,5.9931]
[1741626387157,58.55017533,118.29,118.1,1.52680845]
[1741626387357,58.55017533,118.29,118.15,62.0]
[1741626387655,58.55017533,118.29,118.18,0.06360242]
[1741626387656,0.06210503,118.21,118.18,0.06360242]
[1741626387848,0.06210503,118.21,118.19,8.4643]
[1741626388060,58.55017533,118.26,118.14,58.55017533]
[1741626388253,194.0,118.31,118.18,0.06262102]
[1741626388451,0.05813292,118.21,118.18,0.06262102]
[1741626388653,3.292e-05,118.21,118.14,60.07739887]
[1741626388852,3.292e-05,118.21,118.2,8.4642]
[1741626389060,3.292e-05,118.21,118.18,0.06102644]
[1741626389358,61.51387533,118.3,118.16,1.52678588]
[1741626389551,61.51387533,118.3,118.15,1.52678588]
[1741626389752,61.51387533,118.3,118.2,8.4642]
[1741626389947,61.51387533,118.3,118.14,58.55017533]
[1741626390156,759.22955905,118.22,118.21,0.05801506]
[1741626390456,40.04379706,118.25,118.2,117.10035066]
[1741626390762,3.0248,118.37,118.24,120.55017533]
[1741626390956,3.0248,118.37,118.28,58.55017533]
[1741626391262,278.44,118.36,118.21,6.2189]
[1741626391454,278.44,118.36,118.25,58.55017533]
[1741626391658,8.651e-05,118.3,118.27,0.0590299]
[1741626391964,1.47021546,118.54,118.29,117.10035066]
[1741626392164,42.27,118.46,118.42,58.55017533]
[1741626392453,42.27,118.46,118.3,1.52619491]
[1741626392454,4.56503653,118.53,118.45,58.55017533]
[1741626392654,1.6874789,118.52,118.48,58.55017533]
[1741626393162,1.6874789,118.52,118.51,58.55017533]
[1741626393352,750.30098168,118.68,118.51,58.55017533]
[1741626393557,8.46,118.59,118.54,58.55017533]
[1741626393751,42.27,118.61,118.57,58.55017533]
[1741626393956,50.73,118.58,118.55,0.06292917]
[1741626394162,50.73,118.56,118.47,58.55017533]
[1741626394462,50.73,118.5,118.44,58.55017533]
[1741626394765,50.73,118.49,118.41,58.55017533]
[1741626395059,42.27,118.49,118.41,58.55017533]
[1741626395260,58.55017533,118.56,118.44,58.55017533]
[1741626395564,58.55017533,118.56,118.38,58.55017533]
[1741626395565,61.09017533,118.46,118.36,8.4522]
[1741626395859,8.46,118.39,118.35,23.26089282]
[1741626396060,42.27,118.35,118.34,80.77060814]
[1741626396262,58.55017533,118.37,118.36,157.18158811]
[1741626396460,58.55017533,118.4,118.36,157.18158811]
[1741626396661,42.27,118.42,118.36,157.18158811]
[1741626396861,58.55017533,118.5,118.37,0.0577286]
[1741626397162,58.55017533,118.5,118.39,8.4505]
[1741626397361,42.27,118.45,118.39,278.56]
[1741626397762,4.0,118.67,118.44,58.55017533]
[1741626397953,58.55017533,118.58,118.44,58.55017533]
[1741626398161,0.0634922,118.54,118.52,0.05313368]
[1741626398360,0.0634922,118.54,118.52,8.49443368]
[1741626398560,58.55017533,118.61,118.5,278.56]
[1741626398760,0.06341033,118.54,118.52,0.05681807]
[1741626399164,58.55017533,118.64,118.52,2.54]
[1741626399464,0.05787349,118.54,118.52,0.05525244]
[1741626399768,42.27,118.53,118.5,278.56]
[1741626399963,0.06366823,118.54,118.52,0.06184952]
[1741626400169,100.82017533,118.53,118.35,278.54]
[1741626400463,42.27,118.47,118.42,142.29421222]
[1741626400664,42.27,118.48,118.43,62.0]
[1741626401061,42.27,118.44,118.42,133.84591222]
[1741626401259,42.27,118.43,118.42,133.84591222]
[1741626401469,0.06335382,118.44,118.43,1.68876129]
[1741626401965,58.55017533,118.5,118.43,1.68876129]
[1741626402267,42.27,118.44,118.43,1.68876129]
[1741626402463,58.55017533,118.5,118.43,1.68876129]
[1741626402664,42.27,118.44,118.42,133.90929495]
[1741626402864,58.55017533,118.53,118.42,133.90929495]
[1741626403070,42.27,118.51,118.44,58.55017533]
[1741626403367,42.27,118.5,118.42,192.39608755]
[1741626403563,42.27,118.49,118.42,133.84591222]
[1741626403964,42.27,118.49,118.41,337.09017533]
[1741626404264,0.05904992,118.47,118.44,0.0594014]
[1741626404575,42.27,118.45,118.36,58.55017533]
[1741626404766,42.27,118.42,118.37,1.6896173]
[1741626404967,42.27,118.41,118.37,1.6896173]
[1741626405173,42.27,118.39,118.37,1.6896173]
[1741626405367,58.55017533,118.44,118.37,1.6896173]
[1741626405572,42.27,118.43,118.37,1.6896173]
[1741626405764,42.27,118.41,118.39,0.06301014]
[1741626405964,58.60561967,118.42,118.39,0.06301014]
[1741626406168,472.52,118.48,118.3,278.52]
[1741626406169,42.27,118.38,118.3,278.52]
[1741626406370,42.27,118.38,118.3,337.07017533]
[1741626406673,7.0077,118.45,118.34,58.55017533]
[1741626406868,42.27,118.41,118.34,58.55017533]
[1741626407074,42.27,118.4,118.34,58.55017533]
[1741626407265,0.06077599,118.39,118.36,0.06341887]
[1741626407569,58.55017533,118.42,118.36,62.0]
[1741626407776,42.27,118.37,118.36,0.05791059]
[1741626407980,42.27,118.37,118.31,1.46993601]
[1741626408269,42.27,118.32,118.27,2.9502]
[1741626408468,42.27,118.35,118.28,58.55017533]
[1741626408871,58.55017533,118.39,118.26,58.55017533]
[1741626409181,0.06369374,118.33,118.3,0.05855561]
[1741626409575,58.55017533,118.44,118.31,58.55017533]
[1741626409878,0.06224209,118.39,118.32,337.13017533]
[1741626410078,0.06224209,118.39,118.36,0.05855561]
[1741626410478,0.06224209,118.39,118.32,337.13017533]
[1741626410479,42.27,118.37,118.28,58.55017533]
[1741626410777,58.55017533,118.4,118.29,62.0]
[1741626410980,42.27,118.35,118.29,62.0]
[1741626411275,42.27,118.33,118.29,62.0]
[1741626411476,42.27,118.3,118.29,62.0]
[1741626411780,0.05891717,118.32,118.29,62.0]
[1741626411979,42.27,118.32,118.29,62.0]
[1741626412176,42.27,118.31,118.29,62.0]
[1741626412381,0.06372527,118.32,118.3,58.55017533]
[1741626412586,58.55017533,118.44,118.32,58.55017533]
[1741626412779,42.27,118.4,118.34,58.55017533]
[1741626412981,42.27,118.34,118.3,3.16052203]
[1741626413479,58.55017533,118.39,118.3,3.16052203]
[1741626413678,58.55017533,118.39,118.18,278.72]
[1741626413679,42.27,118.32,118.18,278.72]
[1741626413880,42.27,118.28,118.19,58.55017533]
[1741626414178,42.27,118.27,118.19,1.47071253]
[1741626414370,42.27,118.28,118.19,1.47071253]
[1741626414571,7.1993,118.36,118.19,1.47071253]
[1741626414572,42.27,118.24,118.19,1.47071253]
[1741626414877,58.55017533,118.32,118.19,1.47071253]
[1741626414878,0.05813436,118.23,118.19,1.47071253]
[1741626415278,58.55017533,118.28,118.19,1.47071253]
[1741626415582,0.06470795,118.22,118.2,58.55017533]
[1741626415777,42.27,118.27,118.21,62.0]
[1741626415981,42.27,118.26,118.21,62.0]
[1741626416182,0.06235274,118.25,118.21,62.0]
[1741626416375,0.06235274,118.25,118.18,1.69233372]
[1741626416376,42.27,118.22,118.18,1.69233372]
[1741626416577,42.27,118.21,118.18,1.69233372]
[1741626416881,42.33267222,118.21,118.18,1.69233372]
[1741626417077,42.27,118.19,118.18,1.69233372]
[1741626417478,42.27,118.17,118.16,62.08511599]
[1741626417690,42.27,118.19,118.16,62.08511599]
[1741626418184,101.40610757,118.17,118.16,39.21511599]
[1741626418483,59.13610757,118.17,118.14,273.76565046]
[1741626418679,59.13610757,118.16,118.14,273.76565046]
[1741626418888,194.06277894,118.19,118.14,273.76565046]
[1741626418889,0.06277894,118.19,118.14,273.76565046]
[1741626419186,59.13610757,118.2,118.14,273.76565046]
[1741626419382,59.13610757,118.17,118.14,273.76565046]
[1741626419587,0.05766086,118.18,118.14,273.76565046]
[1741626420383,278.98,118.31,118.14,273.76565046]
[1741626420584,59.13610757,118.28,118.16,59.13610757]
[1741626420790,1.47217463,118.35,118.19,59.13610757]
[1741626421086,278.98,118.36,118.17,59.13610757]
[1741626421289,59.13610757,118.26,118.14,278.7879896]
[1741626421484,59.13610757,118.23,118.14,273.76565046]
[1741626421691,0.06027045,118.21,118.19,0.05766086]
[1741626422295,1.47205008,118.35,118.2,59.13610757]
[1741626422495,279.02,118.4,118.19,0.05766086]
[1741626422691,101.13801137,118.32,118.19,59.19376843]
[1741626422897,59.13610757,118.36,118.22,59.13610757]
[1741626423103,59.13610757,118.36,118.23,3.5473]
[1741626423395,59.13610757,118.3,118.23,62.0]
[1741626423598,59.13610757,118.27,118.19,0.05766086]
[1741626423797,59.13610757,118.21,118.19,0.05766086]
[1741626423990,59.13610757,118.21,118.03,3.7808]
[1741626424193,59.13610757,118.21,118.08,5.02233914]
[1741626424391,59.13610757,118.15,118.08,5.02233914]
[1741626424595,59.13610757,118.25,118.13,59.13610757]
[1741626424797,59.13610757,118.27,118.16,59.13610757]
[1741626424997,59.13610757,118.24,118.1,59.13610757]
[1741626425200,338.15610757,118.32,118.1,64.15844671]
[1741626425398,59.13610757,118.27,118.14,59.13610757]
[1741626425901,59.13610757,118.29,118.15,3.7808]
[1741626426096,59.13610757,118.26,118.19,0.06045906]
[1741626426300,0.06072025,118.22,118.19,0.06045906]
[1741626426496,0.06072025,118.22,118.09,280.49257955]
[1741626426702,0.06072025,118.22,118.19,0.06139286]
[1741626426897,59.13610757,118.27,118.16,62.0]
[1741626427198,17.613728,118.21,118.19,0.06207278]
[1741626427397,76.74983557,118.21,118.19,0.06207278]
[1741626427598,76.74983557,118.21,118.04,279.14]
[1741626427599,59.13610757,118.2,118.08,3.9042]
[1741626427793,59.13610757,118.17,118.03,7.4932]
[1741626428000,59.13610757,118.17,118.07,6.08707682]
[1741626428198,6.85166208,118.11,118.07,1.06473768]
[1741626428394,6.85166208,118.11,118.07,6.08707682]
[1741626428600,6.85166208,118.09,118.07,1.06473768]
[1741626429204,17.613728,118.08,118.07,1.06473768]
[1741626429600,20.153728,118.08,118.07,1.06473768]
[1741626429804,20.153728,118.08,117.94,181.5972744]
[1741626430001,59.13610757,117.97,117.94,122.46116683]
[1741626430204,279.2,118.0,117.94,122.46116683]
[1741626430408,0.05496871,117.97,117.94,122.46116683]
[1741626430704,124.39304885,117.96,117.78,669.22956111]
[1741626430895,59.13610757,117.88,117.78,669.22956111]
[1741626431095,4.0,117.94,117.87,8.48]
[1741626431295,6.84250972,117.9,117.89,8.48]
[1741626431496,6.84250972,117.9,117.84,62.0]
[1741626431709,59.13610757,117.85,117.83,174.05745805]
[1741626431899,59.13610757,117.84,117.83,174.02935805]
[1741626432100,59.19220358,117.85,117.83,173.92955805]
[1741626432300,78.79153132,117.84,117.68,143.80059637]
[1741626432505,59.13610757,117.8,117.75,8.4262]
[1741626432705,59.13610757,117.8,117.68,143.80059637]
[1741626432706,59.13610757,117.77,117.68,136.66489637]
[1741626433008,59.13610757,117.69,117.68,136.66489637]
[1741626433205,59.13610757,117.68,117.6,455.54965458]
[1741626433400,59.13610757,117.63,117.6,454.4849169]
[1741626433602,338.53610757,117.63,117.41,279.4]
[1741626433806,59.13610757,117.61,117.52,8.4262]
[1741626434006,0.05765842,117.53,117.51,84.76]
[1741626434305,0.05765842,117.53,117.38,10.8624]
[1741626434306,12.97604337,117.6,117.52,59.13610757]
[1741626434505,6.72840879,117.65,117.59,93.1862]
[1741626434804,65.86451636,117.65,117.59,62.0]
[1741626435104,279.82,117.73,117.6,8.4262]
[1741626435105,59.13610757,117.67,117.6,8.4262]
[1741626435404,59.13610757,117.78,117.65,8.4262]
[1741626435603,60.61513345,117.81,117.68,59.13610757]
[1741626435805,1.47902588,117.81,117.79,8.4262]
[1741626435999,6.72840879,117.82,117.73,59.13610757]
[1741626436199,65.86451636,117.82,117.74,8.4262]
[1741626436507,59.13610757,117.76,117.65,3.7603]
[1741626436708,59.13610757,117.78,117.65,3.7603]
[1741626436709,338.95610757,117.75,117.65,8.4262]
[1741626437006,338.95610757,117.75,117.67,8.4262]
[1741626437206,59.13610757,117.78,117.69,8.48551679]
[1741626437408,59.13610757,117.72,117.54,346.63820757]
[1741626437710,0.06237503,117.72,117.69,8.4262]
[1741626438003,185.27511229,117.75,117.6,59.13610757]
[1741626438208,185.27511229,117.75,117.65,33.90741346]
[1741626438604,47.48193691,117.71,117.69,0.0577821]
[1741626438808,47.48193691,117.71,117.69,59.13610757]
[1741626439006,63.23106075,117.73,117.72,33.90741346]
[1741626439311,126.13900472,117.75,117.72,118.27221514]
[1741626439510,59.23750757,117.9,117.72,118.27221514]
[1741626439511,114.24980472,117.77,117.73,280.02]
[1741626439703,204.28747453,117.79,117.76,120.63886884]
[1741626439906,262.78959316,117.8,117.73,280.02]
[1741626440112,262.78959316,117.8,117.79,59.13610757]
[1741626440410,262.78959316,117.8,117.76,59.19553294]
[1741626440606,0.0646631,117.81,117.79,59.13610757]
[1741626441007,59.13610757,117.86,117.73,280.02]
[1741626441315,262.78959316,117.9,117.73,280.02]
[1741626441518,0.05932476,117.81,117.79,0.05774199]
[1741626442116,0.05932476,117.81,117.75,62.0]
[1741626442415,0.05932476,117.81,117.77,59.13610757]
[1741626442605,0.00158277,117.81,117.8,59.13610757]
[1741626443011,94.78064323,117.85,117.8,2.54]
[1741626443209,94.78064323,117.85,117.78,59.13610757]
[1741626443716,94.78064323,117.8,117.72,59.13610757]
[1741626443917,94.78064323,117.8,117.77,60.88610757]
[1741626444209,0.06131713,117.77,117.63,280.02]
[1741626444416,0.06131713,117.77,117.64,1.53289505]
[1741626444417,59.13610757,117.72,117.64,1.53289505]
[1741626444614,59.13610757,117.72,117.58,59.13610757]
[1741626444811,59.13610757,117.73,117.6,59.13610757]
[1741626445017,59.13610757,117.67,117.61,1.70053566]
[1741626445207,59.13610757,117.64,117.51,59.13610757]
[1741626445405,8.5054,117.63,117.55,8.5107]
[1741626445707,59.13610757,117.63,117.57,62.0]
[1741626445908,59.13610757,117.6,117.55,13.73]
[1741626446115,59.13610757,117.6,117.55,3.85240936]
[1741626446312,59.13610757,117.57,117.55,3.85240936]
[1741626446616,59.13610757,117.56,117.37,62.94540757]
[1741626446805,59.13610757,117.51,117.49,4.09]
[1741626447006,8.5177,117.46,117.38,70.5233]
[1741626447206,59.13610757,117.5,117.38,62.0]
[1741626447414,59.13610757,117.47,117.12,1681.18]
[1741626447611,59.13610757,117.42,117.29,7.4394]
[1741626447812,59.13610757,117.42,117.17,3.8306]
[1741626447813,59.13610757,117.36,117.17,3.8306]
[1741626448114,59.13610757,117.36,117.26,1.48299668]
[1741626448319,64.99206518,117.32,117.26,1.48299668]
[1741626448520,64.99206518,117.34,117.18,108.28206518]
[1741626448710,64.99206518,117.26,116.99,1.07618647]
[1741626448915,64.99206518,117.16,117.01,3.7991]
[1741626449114,8.5438,117.1,117.01,77.34116518]
[1741626449310,0.05565493,117.1,117.04,64.99206518]
[1741626449514,0.05565493,117.1,117.01,3.7991]
[1741626449515,68.99206518,117.28,117.07,64.99206518]
[1741626449814,64.99206518,117.22,117.08,1.5404693]
[1741626450013,64.99206518,117.22,117.01,3.7991]
[1741626450316,4.0,117.3,116.95,284.3906]
[1741626450317,64.99206518,117.21,117.1,62.0]
[1741626450517,64.99206518,117.27,117.1,62.0]
[1741626450720,64.99206518,117.27,117.11,280.56]
[1741626451017,7.5506,117.37,117.14,0.06542359]
[1741626451018,64.99206518,117.34,117.14,0.06542359]
[1741626451222,206.3976733,117.17,117.16,64.00536518]
[1741626451515,64.99206518,117.4,117.16,1.54033506]
[1741626451712,42.67,117.33,117.24,64.99206518]
[1741626451909,64.99206518,117.4,117.24,345.55206518]
[1741626452115,42.67,117.34,117.25,34.11]
[1741626452315,3.6943,117.45,117.25,34.11]
[1741626452316,0.06376685,117.3,117.27,0.05594308]
[1741626452511,6.685e-05,117.3,117.27,0.05594308]
[1741626452721,64.99206518,117.48,117.29,64.99206518]
[1741626452917,42.67,117.42,117.3,280.74]
[1741626453219,42.67,117.4,117.26,3.9207]
[1741626453417,42.67,117.39,117.27,3.9638]
[1741626453612,42.67,117.32,117.26,3.9207]
[1741626453812,42.67,117.36,117.28,62.0]
[1741626454014,0.05718961,117.34,117.32,0.0612806]
[1741626454215,42.67,117.33,117.32,0.0612806]
[1741626454416,10.26746458,117.49,117.32,0.0612806]
[1741626454718,42.67,117.26,117.14,68.81386518]
[1741626454921,280.74,117.35,117.17,64.99206518]
[1741626455118,280.92,117.37,117.17,64.99206518]
[1741626455319,42.67,117.3,117.17,64.99206518]
[1741626455519,280.92,117.33,117.17,64.99206518]
[1741626455720,42.67,117.33,117.24,8.5336]
[1741626455927,42.67,117.33,117.18,280.92]
[1741626455928,10.26746458,117.39,117.29,64.99206518]
[1741626456125,123.20957503,117.43,117.33,64.99206518]
[1741626456314,123.20957503,117.43,117.34,284.6013]
[1741626456518,123.20957503,117.43,117.34,3.6813]
[1741626456717,123.20957503,117.43,117.37,0.05710602]
[1741626456923,64.99206518,117.5,117.37,0.05710602]
[1741626457123,42.67,117.43,117.37,0.05710602]
[1741626457323,42.67,117.42,117.38,62.0]
[1741626457527,42.67,117.47,117.38,62.0]
[1741626457719,42.67,117.5,117.4,64.99206518]
[1741626457925,123.20957503,117.55,117.4,64.99206518]
[1741626457926,42.67,117.54,117.46,8.5169]
[1741626458122,188.20164021,117.55,117.41,0.05641535]
[1741626458329,42.67,117.52,117.39,4.97]
[1741626458531,42.67,117.53,117.39,4.97]
[1741626458729,123.20957503,117.5,117.39,69.96206518]
[1741626459229,123.20957503,117.5,117.4,282.51687889]
[1741626459422,166.50444827,117.54,117.45,64.99206518]
[1741626459730,166.50444827,117.54,117.48,64.99206518]
[1741626459731,132.45460256,117.54,117.48,64.99206518]
[1741626459926,103.63390256,117.54,117.51,64.99206518]
[1741626460131,97.79140256,117.54,117.51,64.99206518]
[1741626460433,46.74140256,117.54,117.52,1.53541141]
[1741626460625,451.41454056,117.53,117.52,1.53541141]
[1741626460825,37.0477367,117.53,117.52,66.09541141]
[1741626461028,37.0477367,117.53,117.52,62.0]
[1741626461227,37.0477367,117.53,117.51,0.06017785]
[1741626461531,136.27,117.52,117.39,4.97]
[1741626461727,8.51,117.49,117.4,1.53690326]
[1741626461933,127.76,117.51,117.39,4.97]
[1741626461934,37.0477367,117.53,117.39,69.96206518]
[1741626462132,8.51,117.45,117.39,4.97]
[1741626462325,8.51,117.46,117.39,4.97]
[1741626462528,127.76,117.48,117.39,4.97]
[1741626462722,8.51,117.45,117.39,4.97]
[1741626463027,85.39206518,117.51,117.41,0.06436799]
[1741626463028,0.05953914,117.44,117.41,0.06436799]
[1741626463429,3.6319,117.52,117.39,69.96206518]
[1741626463624,4.0,117.77,117.45,64.99206518]
[1741626463824,0.05979476,117.52,117.49,0.05814015]
[1741626464029,64.99206518,117.63,117.49,280.89814015]
[1741626464229,279.57147668,117.56,117.44,280.84]
[1741626464426,64.99206518,117.54,117.39,285.81]
[1741626464632,8.51,117.48,117.4,1.5368799]
[1741626464829,127.76,117.51,117.4,1.5368799]
[1741626465131,8.51,117.49,117.4,1.5368799]
[1741626465324,0.05892411,117.47,117.44,0.05599974]
[1741626465531,259.17147668,117.56,117.45,64.99206518]
[1741626465729,8.51,117.55,117.46,282.35627969]
[1741626466031,259.17147668,117.53,117.46,280.82]
[1741626466225,267.68147668,117.53,117.46,280.82]
[1741626466430,259.17147668,117.53,117.46,280.82]
[1741626466735,0.05588945,117.51,117.48,0.05758689]
[1741626466932,259.17147668,117.53,117.48,65.04965207]
[1741626467126,259.06077668,117.53,117.48,65.04965207]
[1741626467330,259.06077668,117.53,117.49,62.0]
[1741626467933,322.84273355,117.56,117.48,0.05758689]